bitfinex-derivatives/quotes_SOLF0:USTF0_20250328
["timestamp","ask_amount","ask_price","bid_price","bid_amount"]
[1743151921336,28.42,131.41,131.33,266.37171038]
[1743151921529,0.05434292,131.38,131.33,266.37171038]
[1743151922235,0.05434292,131.38,131.37,7.6149]
[1743151930832,0.05434292,131.38,131.37,17.4267435]
[1743151931033,28.42,131.41,131.4,7.6132]
[1743151931947,28.42,131.45,131.4,9.8118435]
[1743151932143,0.0562689,131.42,131.41,9.8118435]
[1743151932440,0.0562689,131.42,131.41,17.4244435]
[1743151932643,20.34959009,131.48,131.41,9.8118435]
[1743151932841,28.42,131.47,131.43,9.8118435]
[1743151933142,28.42,131.47,131.45,7.61]
[1743151933442,28.42,131.47,131.44,9.8118435]
[1743151934043,0.0552137,131.47,131.46,9.8118435]
[1743151934244,0.0552137,131.47,131.46,17.4215435]
[1743151934645,10.53774659,131.5,131.46,9.8118435]
[1743151934841,10.53774659,131.5,131.49,7.608]
[1743151936046,0.05496476,131.51,131.49,7.608]
[1743151936747,0.05496476,131.51,131.48,0.0575977]
[1743151937344,0.05496476,131.51,131.5,7.6074]
[1743151937546,0.05496476,131.51,131.48,0.0575977]
[1743151937937,0.05496476,131.51,131.48,7.6658977]
[1743151938440,7.66206476,131.51,131.48,7.6658977]
[1743151938648,7.66206476,131.51,131.48,0.0575977]
[1743151938649,0.05496476,131.51,131.48,0.0575977]
[1743151938950,36.0074,131.5,131.48,0.0575977]
[1743151939352,28.4,131.5,131.48,0.0575977]
[1743151940245,36.0079,131.5,131.48,0.0575977]
[1743151940448,28.4,131.5,131.48,0.0575977]
[1743151940849,36.0079,131.5,131.48,0.0575977]
[1743151942052,28.4,131.5,131.48,0.0575977]
[1743151942646,28.4,131.5,131.49,7.608]
[1743151943555,28.4,131.5,131.48,0.0575977]
[1743151944052,28.4,131.5,131.48,7.6660977]
[1743151944653,28.4,131.5,131.49,7.608]
[1743151947152,0.05496476,131.51,131.5,7.6074]
[1743151948154,0.05496476,131.51,131.48,0.0575977]
[1743151948757,0.05496476,131.51,131.49,7.6077]
[1743151948957,0.05496476,131.51,131.48,0.0575977]
[1743151949354,0.05496476,131.51,131.49,7.6077]
[1743151949759,0.05496476,131.51,131.48,0.0575977]
[1743151950562,7.66186476,131.51,131.49,7.6075]
[1743151950763,0.05496476,131.51,131.48,0.0575977]
[1743151951165,7.6077,131.5,131.48,0.0575977]
[1743151951351,0.05496476,131.51,131.48,0.0575977]
[1743151951765,0.05496476,131.51,131.49,7.6077]
[1743151952564,0.05496476,131.51,131.5,7.6074]
[1743151954966,0.05496476,131.51,131.49,15.30410496]
[1743151954967,3.9708,131.56,131.54,7.6049]
[1743151955155,28.38,131.55,131.54,7.6049]
[1743151955767,8.1708,131.59,131.55,7.6041]
[1743151956071,8.1708,131.59,131.51,15.30410496]
[1743151956272,7.65222705,131.58,131.56,0.0480593]
[1743151956472,28.38,131.57,131.56,0.0480593]
[1743151956866,0.04922705,131.58,131.56,0.0480593]
[1743151957063,28.38,131.57,131.56,0.0480593]
[1743151957773,35.9834,131.57,131.56,0.0480593]
[1743151958875,7.605,131.55,131.49,15.30410496]
[1743151959065,28.38,131.54,131.49,15.30410496]
[1743151959374,28.38,131.54,131.49,7.6077]
[1743151959576,28.38,131.54,131.45,43.68410496]
[1743151959773,4.226,131.53,131.45,43.68410496]
[1743151959968,0.05852436,131.51,131.48,0.05649003]
[1743151960277,28.38,131.5,131.48,0.05649003]
[1743151960465,28.38,131.5,131.39,32.4993]
[1743151960769,7.609,131.48,131.42,15.30410496]
[1743151960979,28.38,131.47,131.42,15.30410496]
[1743151961172,28.38,131.47,131.39,8.3129]
[1743151961378,28.38,131.47,131.4,15.30410496]
[1743151961578,28.38,131.47,131.42,0.05116891]
[1743151961579,0.05285506,131.44,131.42,0.05116891]
[1743151961871,36.04405506,131.44,131.42,0.05116891]
[1743151962577,28.43285506,131.44,131.42,0.05116891]
[1743151963178,28.43285506,131.44,131.42,7.66316891]
[1743151964381,28.43285506,131.44,131.42,0.05116891]
[1743151965174,28.43285506,131.44,131.4,7.6129]
[1743151965175,28.43285506,131.44,131.36,270.47450496]
[1743151965370,28.38,131.44,131.36,270.47450496]
[1743151965684,28.38,131.44,131.39,7.6137]
[1743151965879,7.6118,131.43,131.39,7.6137]
[1743151966280,0.04953202,131.42,131.4,0.0547106]
[1743151966480,28.38,131.41,131.4,7.6679106]
[1743151966982,28.38,131.41,131.4,0.0547106]
[1743151967683,28.38,131.41,131.4,7.6679106]
[1743151969277,0.04953202,131.42,131.41,7.6126]
[1743151982692,7.6126,131.41,131.4,0.0547106]
[1743151987786,36.06203202,131.42,131.4,0.0547106]
[1743151988596,7.6126,131.41,131.4,0.0547106]
[1743151989490,7.6139,131.39,131.34,15.30410496]
[1743151989991,28.4,131.42,131.34,15.30410496]
[1743151990496,7.6143,131.39,131.36,7.6152]
[1743151990697,7.66984507,131.39,131.36,7.6152]
[1743151990995,7.66984507,131.39,131.34,15.30410496]
[1743151991296,0.05554507,131.39,131.37,7.6146]
[1743151991893,7.66934507,131.39,131.37,7.6146]
[1743151992094,0.05554507,131.39,131.37,7.6146]
[1743151992995,7.66934507,131.39,131.37,7.6146]
[1743151993996,0.05554507,131.39,131.38,7.6144]
[1743151999003,0.05554507,131.39,131.36,15.30410496]
[1743151999004,0.05554507,131.39,131.37,7.6146]
[1743152000303,7.66934507,131.39,131.37,7.6146]
[1743152001505,0.05554507,131.39,131.37,7.6146]
[1743152003608,7.66934507,131.39,131.37,7.6146]
[1743152005001,7.66934507,131.39,131.37,17.42849263]
[1743152005608,36.04934507,131.39,131.37,17.42849263]
[1743152005805,38.2494377,131.39,131.35,9.81389263]
[1743152005998,28.38,131.39,131.35,9.81389263]
[1743152006198,7.66582247,131.38,131.35,17.42939263]
[1743152006804,7.6152,131.37,131.35,17.42939263]
[1743152007604,7.66582247,131.38,131.35,17.42939263]
[1743152008005,7.66582247,131.38,131.36,7.6154]
[1743152008207,0.05122247,131.38,131.35,9.81389263]
[1743152008603,0.05122247,131.38,131.35,17.42969263]
[1743152009007,7.66572247,131.38,131.36,7.6155]
[1743152010111,0.05122247,131.38,131.37,7.6149]
[1743152010409,11.86267853,131.46,131.37,9.81389263]
[1743152010605,11.86267853,131.46,131.43,9.81389263]
[1743152010909,28.38,131.45,131.43,9.81389263]
[1743152011109,28.38,131.45,131.41,9.81389263]
[1743152011613,0.0557695,131.44,131.42,0.05576462]
[1743152012110,9.86966213,131.44,131.42,0.05576462]
[1743152012611,17.48096213,131.44,131.42,0.05576462]
[1743152013014,0.0557695,131.44,131.42,0.05576462]
[1743152013605,0.0557695,131.44,131.43,7.6115]
[1743152013911,28.4357695,131.44,131.43,7.6115]
[1743152014307,0.0557695,131.44,131.43,7.6115]
[1743152026526,0.0557695,131.44,131.42,0.05576462]
[1743152027120,7.6669695,131.44,131.42,0.05576462]
[1743152027324,0.0557695,131.44,131.42,0.05576462]
[1743152027820,7.6115,131.43,131.42,0.05576462]
[1743152041133,9.80930871,131.43,131.38,9.80930871]
[1743152041336,38.16930871,131.42,131.38,9.80930871]
[1743152041537,28.36,131.41,131.38,9.80930871]
[1743152042039,35.973,131.41,131.38,9.80930871]
[1743152042240,36.03083184,131.41,131.38,9.80930871]
[1743152042641,36.03083184,131.41,131.39,7.6137]
[1743152044642,36.03083184,131.41,131.39,17.42300871]
[1743152046335,0.05783184,131.41,131.4,17.42250871]
[1743152046537,28.36,131.45,131.4,9.80930871]
[1743152046734,28.36,131.45,131.43,7.611]
[1743152047744,28.40949383,131.45,131.43,17.47011276]
[1743152047946,0.04949383,131.45,131.44,17.42020871]
[1743152048443,10.53774659,131.47,131.46,7.6097]
[1743152048743,10.53774659,131.5,131.46,9.80930871]
[1743152049050,10.53774659,131.5,131.48,9.80930871]
[1743152049240,10.53774659,131.5,131.48,17.41750871]
[1743152049437,10.58615601,131.5,131.48,17.47024685]
[1743152051246,10.58615601,131.5,131.48,9.86204685]
[1743152051835,10.58615601,131.5,131.48,17.47034685]
[1743152052035,0.04840942,131.5,131.48,17.47034685]
[1743152052238,7.65580942,131.5,131.48,9.86204685]
[1743152052439,0.04840942,131.5,131.48,17.47064685]
[1743152054346,9.85771813,131.5,131.48,0.05273814]
[1743152054548,28.34,131.49,131.48,0.05273814]
[1743152054741,35.948,131.49,131.48,0.05273814]
[1743152055644,35.948,131.49,131.45,9.80930871]
[1743152055645,7.6098,131.46,131.44,9.80930871]
[1743152055845,38.14930871,131.49,131.45,9.80930871]
[1743152056044,28.34,131.49,131.46,9.80930871]
[1743152056240,7.6091,131.48,131.45,9.80930871]
[1743152056853,7.66646068,131.48,131.45,9.86120333]
[1743152057048,0.05736068,131.48,131.45,9.86120333]
[1743152057252,0.05736068,131.48,131.45,17.47120333]
[1743152057849,7.66616068,131.48,131.45,17.47120333]
[1743152058251,0.05736068,131.48,131.46,7.6097]
[1743152058550,0.05736068,131.48,131.45,9.86120333]
[1743152058754,0.05736068,131.48,131.45,17.47120333]
[1743152058953,7.66636068,131.48,131.45,17.47120333]
[1743152059351,0.05736068,131.48,131.45,9.86120333]
[1743152059548,0.05736068,131.48,131.45,0.05189462]
[1743152059853,9.86666939,131.48,131.45,0.05189462]
[1743152060058,0.05736068,131.48,131.45,0.05189462]
[1743152060252,7.6096,131.47,131.45,0.05189462]
[1743152060451,0.05736068,131.48,131.45,0.05189462]
[1743152060852,7.6091,131.47,131.45,0.05189462]
[1743152061152,0.05736068,131.48,131.45,0.05189462]
[1743152061359,7.6097,131.46,131.45,0.05189462]
[1743152064368,7.6094,131.47,131.45,0.05189462]
[1743152065162,0.05736068,131.48,131.46,7.6097]
[1743152066070,7.66616068,131.48,131.46,7.6097]
[1743152066872,0.05736068,131.48,131.45,9.86120333]
[1743152067170,7.6091,131.47,131.45,9.86120333]
[1743152068677,7.6091,131.47,131.45,17.47130333]
[1743152070672,7.6097,131.46,131.45,0.05189462]
[1743152071774,7.6095,131.47,131.45,0.05189462]
[1743152071975,0.05736068,131.48,131.45,9.86120333]
[1743152072475,7.66626068,131.48,131.46,7.6097]
[1743152073276,7.66626068,131.48,131.45,17.47120333]
[1743152073977,7.6095,131.47,131.45,17.47120333]
[1743152075773,7.66626068,131.48,131.45,17.47120333]
[1743152076169,7.66626068,131.48,131.46,7.6096]
[1743152080581,7.66626068,131.48,131.45,17.47110333]
[1743152080985,7.66626068,131.48,131.45,9.86120333]
[1743152081284,7.66626068,131.48,131.46,7.6097]
[1743152093792,0.05736068,131.48,131.45,0.05189462]
[1743152093994,9.80930871,131.47,131.45,0.05189462]
[1743152094193,38.10930871,131.46,131.45,0.05189462]
[1743152094394,45.71900871,131.46,131.45,0.05189462]
[1743152094591,35.9097,131.46,131.45,0.05189462]
[1743152101891,45.71900871,131.46,131.45,0.05189462]
[1743152104601,45.71900871,131.46,131.41,7.6123]
[1743152104602,38.10930871,131.46,131.39,9.80930871]
[1743152104794,9.80930871,131.43,131.4,7.6126]
[1743152104995,28.3,131.43,131.39,9.80930871]
[1743152105191,35.9118,131.43,131.39,9.80930871]
[1743152105388,28.3,131.43,131.4,7.6131]
[1743152105590,0.05097673,131.42,131.39,9.80930871]
[1743152105791,9.86028544,131.42,131.38,7.614]
[1743152106293,9.80930871,131.41,131.37,7.6148]
[1743152106503,28.3,131.4,131.37,7.6148]
[1743152107002,35.9136,131.4,131.37,7.6148]
[1743152107197,28.3,131.4,131.37,7.6148]
[1743152107394,28.3,131.4,131.36,17.42460871]
[1743152107599,7.6143,131.39,131.36,9.80930871]
[1743152107898,7.66885799,131.39,131.36,9.80930871]
[1743152108501,7.6144,131.38,131.36,17.42440871]
[1743152108702,7.6144,131.38,131.36,7.6151]
[1743152109091,7.66865799,131.39,131.36,7.6151]
[1743152110100,9.8638667,131.39,131.33,9.80930871]
[1743152110300,9.80930871,131.38,131.33,9.80930871]
[1743152110492,0.05455799,131.39,131.35,9.80930871]
[1743152110701,0.05455799,131.39,131.36,7.6151]
[1743152110702,7.6141,131.39,131.36,7.6151]
[1743152110900,0.0573738,131.38,131.36,7.6151]
[1743152112503,0.0573738,131.38,131.37,7.6149]
[1743152112704,0.0573738,131.38,131.37,17.42420871]
[1743152113206,0.0573738,131.38,131.35,9.80930871]
[1743152113408,0.0573738,131.38,131.34,9.80930871]
[1743152113706,0.0573738,131.38,131.36,7.6152]
[1743152116306,7.6717738,131.38,131.35,17.42510871]
[1743152116506,9.86668251,131.38,131.34,9.80930871]
[1743152116701,7.6153,131.37,131.33,14.13370871]
[1743152116910,7.6153,131.37,131.34,7.6162]
[1743152117107,9.86668251,131.38,131.33,9.80930871]
[1743152117307,7.6152,131.37,131.33,9.80930871]
[1743152117710,35.9152,131.37,131.34,7.6165]
[1743152118010,7.6158,131.36,131.34,7.6165]
[1743152118212,7.6158,131.36,131.33,17.42630871]
[1743152118614,7.6161,131.35,131.33,7.617]
[1743152118815,9.80930871,131.36,131.32,7.6177]
[1743152119008,0.05513199,131.35,131.32,7.6177]
[1743152119208,7.67153199,131.35,131.32,7.6177]
[1743152121524,7.617,131.34,131.32,7.6177]
[1743152121725,7.617,131.34,131.31,7.6181]
[1743152121927,7.617,131.34,131.3,9.80930871]
[1743152122526,7.617,131.34,131.31,7.6183]
[1743152122730,7.6168,131.34,131.31,7.6183]
[1743152123528,9.80930871,131.33,131.28,9.80930871]
[1743152123829,9.80930871,131.32,131.27,9.80930871]
[1743152124024,28.3,131.31,131.27,9.80930871]
[1743152124232,35.9188,131.31,131.28,7.6199]
[1743152124530,35.9188,131.31,131.27,9.80930871]
[1743152124731,35.9188,131.31,131.29,7.6193]
[1743152125936,28.3,131.31,131.29,7.6193]
[1743152126633,28.3,131.31,131.27,9.80930871]
[1743152126634,28.3,131.31,131.3,7.619]
[1743152126833,28.3,131.31,131.3,17.42830871]
[1743152127037,0.04827322,131.32,131.31,7.6184]
[1743152129036,0.04827322,131.32,131.3,7.6187]
[1743152129439,7.66617322,131.32,131.3,7.6187]
[1743152129636,0.04827322,131.32,131.3,7.6187]
[1743152129829,28.3,131.31,131.27,7.6206]
[1743152130034,9.80930871,131.28,131.19,266.5305]
[1743152130239,28.3,131.31,131.24,9.80930871]
[1743152130240,28.3,131.27,131.24,9.80930871]
[1743152130631,28.35432758,131.27,131.25,7.6219]
[1743152131132,35.97512758,131.27,131.24,7.6222]
[1743152131439,28.35432758,131.27,131.23,9.80930871]
[1743152131741,38.16363629,131.27,131.22,9.80930871]
[1743152132037,38.16363629,131.27,131.24,7.6221]
[1743152132641,28.35432758,131.27,131.24,9.80930871]
[1743152133845,28.35432758,131.27,131.26,17.43060871]
[1743152134139,0.05432758,131.27,131.26,17.43060871]
[1743152135042,0.05432758,131.27,131.26,7.6213]
[1743152135838,0.05432758,131.27,131.25,7.6219]
[1743152136234,0.05432758,131.27,131.24,9.80930871]
[1743152137248,0.05432758,131.27,131.25,7.6219]
[1743152139349,0.05432758,131.27,131.26,7.6213]
[1743152139745,28.35432758,131.27,131.24,9.80930871]
[1743152140150,28.35432758,131.27,131.25,7.6216]
[1743152141251,28.35432758,131.27,131.26,7.6213]
[1743152141947,28.35432758,131.27,131.23,9.80930871]
[1743152142147,28.35432758,131.27,131.22,9.80930871]
[1743152142148,38.16363629,131.27,131.22,9.80930871]
[1743152142553,45.78463629,131.27,131.25,7.6218]
[1743152142852,38.16363629,131.27,131.25,7.6218]
[1743152143154,28.35432758,131.27,131.23,9.80930871]
[1743152144049,28.35432758,131.27,131.26,7.6213]
[1743152144249,1.32609317,131.35,131.26,7.6213]
[1743152144250,42.15098638,131.36,131.26,9.80930871]
[1743152144455,9.80930871,131.33,131.25,28.3]
[1743152144653,17.42740871,131.32,131.29,7.6192]
[1743152144853,45.72740871,131.32,131.29,7.6192]
[1743152145555,45.77628992,131.32,131.29,7.66901888]
[1743152145755,7.6185,131.31,131.29,0.04981888]
[1743152145949,9.80930871,131.31,131.29,0.04981888]
[1743152146757,17.42800871,131.31,131.29,0.04981888]
[1743152147157,9.80930871,131.31,131.29,0.04981888]
[1743152147558,17.42770871,131.31,131.29,7.66931888]
[1743152148046,17.42770871,131.31,131.29,0.04981888]
[1743152149959,17.42770871,131.31,131.29,7.66941888]
[1743152150259,17.42770871,131.31,131.29,0.04981888]
[1743152152058,17.42770871,131.31,131.29,7.66931888]
[1743152152252,17.42770871,131.31,131.29,0.04981888]
[1743152153462,7.619,131.3,131.29,0.04981888]
[1743152154959,17.42830871,131.3,131.29,0.04981888]
[1743152157762,9.80930871,131.3,131.29,0.04981888]
[1743152158557,17.42830871,131.3,131.29,0.04981888]
[1743152160059,17.42830871,131.3,131.25,9.80930871]
[1743152160267,9.80930871,131.27,131.22,9.80930871]
[1743152160657,9.80930871,131.26,131.22,9.80930871]
[1743152160860,9.80930871,131.26,131.23,7.6226]
[1743152161059,9.80930871,131.26,131.21,9.80930871]
[1743152161267,17.48276201,131.26,131.23,7.6226]
[1743152161770,9.86106201,131.26,131.23,7.6226]
[1743152162265,7.6221,131.25,131.23,7.6226]
[1743152164268,9.86106201,131.26,131.22,7.6232]
[1743152164469,38.08930871,131.25,131.22,7.6232]
[1743152165374,7.6228,131.24,131.22,7.6232]
[1743152166475,7.6232,131.23,131.19,9.80930871]
[1743152166876,0.0558388,131.22,131.2,7.6248]
[1743152167375,0.0558388,131.22,131.19,9.80930871]
[1743152168776,0.0558388,131.22,131.21,7.6242]
[1743152173470,38.14514751,131.22,131.13,15.2567]
[1743152173674,38.08930871,131.22,131.17,9.80930871]
[1743152173981,0.05697547,131.19,131.18,7.6257]
[1743152174781,0.05697547,131.19,131.18,17.43500871]
[1743152174976,7.547e-05,131.19,131.18,17.43500871]
[1743152186299,9.80930871,131.27,131.24,7.6221]
[1743152186503,28.28,131.26,131.21,9.80930871]
[1743152187003,38.08930871,131.27,131.21,9.80930871]
[1743152187703,0.05356439,131.25,131.24,7.6222]
[1743152195606,0.05356439,131.25,131.23,7.68093489]
[1743152195902,0.05356439,131.25,131.23,0.05823489]
[1743152196104,0.05356439,131.25,131.24,7.6225]
[1743152196805,0.05356439,131.25,131.23,7.68103489]
[1743152197104,38.08930871,131.24,131.18,13.73600871]
[1743152197405,9.80930871,131.22,131.18,9.80930871]
[1743152197600,7.6235,131.23,131.18,9.80930871]
[1743152197601,17.43280871,131.23,131.18,9.80930871]
[1743152198308,0.05005341,131.22,131.21,7.6238]
[1743152202614,0.05005341,131.22,131.19,9.80930871]
[1743152202615,0.05005341,131.22,131.2,7.6245]
[1743152202807,9.85936212,131.22,131.17,9.80930871]
[1743152203208,17.43390871,131.21,131.18,7.6257]
[1743152203507,17.43390871,131.21,131.16,9.80930871]
[1743152203812,45.69390871,131.21,131.16,9.80930871]
[1743152204411,38.06930871,131.21,131.16,9.80930871]
[1743152205010,45.69350871,131.21,131.18,7.6254]
[1743152205212,45.69350871,131.21,131.16,9.80930871]
[1743152205515,7.6248,131.2,131.16,9.80930871]
[1743152205706,38.06930871,131.21,131.16,9.80930871]
[1743152205911,0.05273852,131.19,131.16,9.80930871]
[1743152206112,0.05273852,131.19,131.18,7.6257]
[1743152208010,0.05273852,131.19,131.16,9.80930871]
[1743152208204,0.05273852,131.19,131.15,4.0392]
[1743152208512,9.86204723,131.19,131.15,9.80930871]
[1743152208709,7.6263,131.18,131.15,9.80930871]
[1743152208910,7.6263,131.18,131.14,9.80930871]
[1743152209307,0.05295132,131.17,131.14,9.80930871]
[1743152209713,9.86226003,131.17,131.13,9.80930871]
[1743152210111,7.6276,131.16,131.13,9.80930871]
[1743152210316,38.06930871,131.15,131.11,9.80930871]
[1743152210614,38.06930871,131.15,131.09,7.6312]
[1743152210920,0.04826033,131.14,131.11,9.80930871]
[1743152211123,7.67656033,131.14,131.11,9.80930871]
[1743152211324,0.04826033,131.14,131.11,9.80930871]
[1743152211820,7.67666033,131.14,131.11,9.80930871]
[1743152212623,7.6289,131.13,131.11,9.80930871]
[1743152212817,0.04826033,131.14,131.11,9.80930871]
[1743152213029,0.04826033,131.14,131.1,9.80930871]
[1743152213315,0.04826033,131.14,131.12,9.80930871]
[1743152213721,7.67656033,131.14,131.11,9.80930871]
[1743152215524,7.629,131.13,131.11,9.80930871]
[1743152217325,0.04826033,131.14,131.1,9.80930871]
[1743152217526,9.80930871,131.13,131.08,9.80930871]
[1743152217718,28.26,131.12,131.08,9.80930871]
[1743152217924,7.6301,131.11,131.08,9.80930871]
[1743152218120,28.26,131.12,131.08,9.80930871]
[1743152218320,7.6309,131.1,131.08,9.80930871]
[1743152218824,7.6858323,131.1,131.08,9.80930871]
[1743152219023,7.6312,131.09,131.07,9.80930871]
[1743152219924,0.0549323,131.1,131.07,9.80930871]
[1743152220124,0.0549323,131.1,131.05,7.6332]
[1743152220326,7.6860323,131.1,131.07,9.80930871]
[1743152220525,0.0549323,131.1,131.07,9.80930871]
[1743152220727,0.0549323,131.1,131.09,9.80930871]
[1743152222832,0.0549323,131.1,131.09,17.44050871]
[1743152227318,0.0549323,131.1,131.09,9.80930871]
[1743152227832,0.0549323,131.1,131.09,17.44050871]
[1743152232734,38.08930871,131.15,131.13,7.6283]
[1743152232930,36.2872,131.17,131.13,9.80930871]
[1743152233233,28.26,131.18,131.14,9.80930871]
[1743152233532,28.26,131.18,131.15,9.80930871]
[1743152233930,28.31770542,131.18,131.16,7.6271]
[1743152234334,28.31770542,131.18,131.15,9.86139309]
[1743152235323,0.05770542,131.18,131.15,9.86139309]
[1743152235730,0.05770542,131.18,131.17,7.6265]
[1743152239537,0.05770542,131.18,131.16,17.43610871]
[1743152239736,7.68370542,131.18,131.16,17.43610871]
[1743152240032,7.68370542,131.18,131.15,17.48879309]
[1743152240237,7.68370542,131.18,131.15,0.05208438]
[1743152240542,0.05770542,131.18,131.15,0.05208438]
[1743152240739,0.05770542,131.18,131.16,7.6266]
[1743152242040,7.68380542,131.18,131.15,7.67958438]
[1743152242228,0.05770542,131.18,131.15,0.05208438]
[1743152242837,7.68410542,131.18,131.15,7.67968438]
[1743152243236,9.86701413,131.18,131.15,0.05208438]
[1743152243538,35.8868,131.17,131.15,0.05208438]
[1743152244240,28.26,131.17,131.15,7.67968438]
[1743152245634,28.26,131.17,131.16,7.6271]
[1743152252247,0.05770542,131.18,131.17,7.6265]
[1743152252449,0.05770542,131.18,131.17,17.43580871]
[1743152252841,261.34930871,131.24,131.17,9.80930871]
[1743152253040,28.24,131.23,131.19,9.80930871]
[1743152253548,35.8633,131.23,131.2,7.6245]
[1743152253949,35.91180396,131.23,131.2,7.68238238]
[1743152254651,28.28850396,131.23,131.21,7.6241]
[1743152254847,28.28850396,131.23,131.2,0.05788238]
[1743152255149,0.04850396,131.23,131.2,0.05788238]
[1743152255340,7.67160396,131.23,131.2,0.05788238]
[1743152255546,9.80930871,131.21,131.2,0.05788238]
[1743152255746,7.6251,131.2,131.16,17.43630871]
[1743152256645,7.6251,131.2,131.17,7.6265]
[1743152256845,0.05629056,131.19,131.17,7.68373389]
[1743152257251,7.68179056,131.19,131.17,0.05723389]
[1743152257747,0.05629056,131.19,131.17,9.8665426]
[1743152257949,0.05629056,131.19,131.18,9.80930871]
[1743152258139,18.12520871,131.25,131.18,9.80930871]
[1743152258140,8.3159,131.25,131.18,9.80930871]
[1743152258342,36.5559,131.25,131.21,9.80930871]
[1743152258538,44.1781,131.25,131.22,7.6234]
[1743152258950,44.1779,131.25,131.22,7.6234]
[1743152259344,44.23338777,131.25,131.22,7.67746958]
[1743152259846,7.6225,131.24,131.22,7.67746958]
[1743152260451,7.6225,131.24,131.22,0.05406958]
[1743152261344,46.42069648,131.25,131.22,0.05406958]
[1743152262350,7.6228,131.24,131.22,0.05406958]
[1743152267667,54.04289648,131.25,131.22,7.67766958]
[1743152268071,54.04289648,131.25,131.22,0.05406958]
[1743152268462,7.6225,131.24,131.22,0.05406958]
[1743152269369,35.8425,131.24,131.22,0.05406958]
[1743152269868,7.6231,131.23,131.22,0.05406958]
[1743152272666,35.8427,131.24,131.22,0.05406958]
[1743152275261,28.22,131.24,131.22,9.86337829]
[1743152275975,28.22,131.24,131.22,17.48677829]
[1743152277070,0.05548777,131.25,131.23,9.80930871]
[1743152277277,0.05548777,131.25,131.24,9.80930871]
[1743152277472,0.05548777,131.25,131.24,17.43180871]
[1743152278276,0.05548777,131.25,131.24,9.80930871]
[1743152278773,0.05548777,131.25,131.22,9.86337829]
[1743152278979,0.05548777,131.25,131.22,0.05406958]
[1743152279379,7.67768777,131.25,131.22,0.05406958]
[1743152279581,7.67768777,131.25,131.22,9.86337829]
[1743152280178,0.05548777,131.25,131.22,9.86337829]
[1743152280878,0.05548777,131.25,131.23,9.80930871]
[1743152281378,0.05548777,131.25,131.24,17.43180871]
[1743152281577,46.27950871,131.29,131.24,9.80930871]
[1743152281780,53.89940871,131.29,131.25,7.6218]
[1743152282080,53.89940871,131.29,131.24,9.80930871]
[1743152282478,9.80930871,131.27,131.23,17.43200871]
[1743152282681,9.80930871,131.27,131.25,0.05289217]
[1743152282982,17.43030871,131.27,131.25,0.05289217]
[1743152283282,9.80930871,131.27,131.25,0.05289217]
[1743152284284,9.80930871,131.27,131.25,7.67469217]
[1743152284674,38.00930871,131.27,131.25,7.67469217]
[1743152285178,28.2,131.27,131.26,7.6213]
[1743152285477,0.05525734,131.28,131.26,9.80930871]
[1743152285683,9.80930871,131.33,131.3,7.6185]
[1743152285982,28.2,131.33,131.29,9.80930871]
[1743152286682,28.2,131.33,131.31,7.6181]
[1743152286883,0.05602622,131.32,131.31,7.6181]
[1743152287090,0.05602622,131.32,131.3,7.67631]
[1743152287286,0.05602622,131.32,131.3,0.05761]
[1743152288281,0.05602622,131.32,131.31,7.6184]
[1743152289478,0.05602622,131.32,131.31,17.42770871]
[1743152289692,251.5,131.37,131.33,7.6171]
[1743152289693,9.80930871,131.37,131.33,7.6171]
[1743152289979,9.80930871,131.38,131.33,9.80930871]
[1743152290176,15.9465,131.39,131.28,28.2]
[1743152290177,28.2,131.37,131.35,7.6158]
[1743152290680,25.75580871,131.39,131.35,7.6158]
[1743152290886,0.04824218,131.37,131.35,7.6670086]
[1743152291074,0.04824218,131.37,131.36,7.6155]
[1743152291277,0.04824218,131.37,131.35,0.0512086]
[1743152291477,0.04824218,131.37,131.36,17.42480871]
[1743152292386,28.18,131.41,131.37,7.6148]
[1743152292582,9.80930871,131.39,131.35,9.80930871]
[1743152292780,9.80930871,131.39,131.34,37.98930871]
[1743152292982,15.33841357,131.4,131.34,28.18]
[1743152293179,7.6146,131.38,131.34,7.6164]
[1743152293379,7.6146,131.38,131.31,28.18]
[1743152293380,43.51841357,131.38,131.3,15.33841357]
[1743152293581,7.6171,131.34,131.29,7.6193]
[1743152293783,28.18,131.33,131.29,7.6193]
[1743152294281,28.18,131.33,131.25,43.51841357]
[1743152294786,0.05410835,131.3,131.28,0.05012511]
[1743152295885,0.05410835,131.3,131.28,7.66992511]
[1743152297277,0.05410835,131.3,131.29,7.6196]
[1743152297483,28.18,131.33,131.29,15.33841357]
[1743152297681,7.6166,131.35,131.31,7.6181]